bitfinex/quotes_ETHUSD_20251218
["timestamp","ask_amount","ask_price","bid_price","bid_amount"]
[1766083833101,2.1191,2834.6,2833.8,2.1938]
[1766083833507,0.405504,2835.3,2834.0,4.1425]
[1766083833711,6.3116,2835.3,2834.4,2.1938]
[1766083833879,0.63126,2835.2,2834.5,2.7658]
[1766083834685,0.001,2835.4,2834.8,4.1425]
[1766083834884,0.001,2835.4,2834.8,6.3363]
[1766083835313,0.001,2835.8,2835.0,6.3363]
[1766083835612,0.001,2835.8,2835.2,2.1938]
[1766083835810,0.001,2836.0,2835.3,4.1425]
[1766083835986,4.1935,2836.0,2835.3,0.572]
[1766083836193,0.41935,2835.9,2835.3,0.572]
[1766083836512,4.1925,2835.8,2834.9,2.1938]
[1766083836697,2.53845,2835.9,2835.1,4.1425]
[1766083836698,0.41935,2835.9,2835.1,4.1425]
[1766083836904,0.001,2836.5,2835.5,6.3363]
[1766083837106,0.001,2836.5,2835.6,2.1938]
[1766083837424,0.48007978,2837.0,2835.4,4.09883924]
[1766083837425,0.001,2837.0,2835.7,4.1425]
[1766083837636,0.001,2837.0,2836.2,4.1425]
[1766083837780,0.001,2837.2,2836.4,4.1425]
[1766083837981,0.001,2837.2,2836.6,2.1938]
[1766083838181,0.001,2838.3,2836.9,2.1938]
[1766083838182,6.3116,2838.0,2836.9,2.1938]
[1766083838432,4.1925,2837.8,2836.7,0.572]
[1766083838578,2.1191,2837.3,2836.2,2.7658]
[1766083838783,2.1191,2837.2,2836.2,2.7658]
[1766083839009,4.1925,2837.1,2836.2,6.29163465]
[1766083839580,4.1925,2837.1,2836.2,2.1938]
[1766083839806,0.63116,2837.0,2836.2,2.1938]
[1766083840327,0.63116,2837.0,2836.2,5.71960617]
[1766083840510,0.63116,2837.0,2836.4,2.1938]
[1766083840809,0.572,2837.3,2836.5,2.1938]
[1766083841012,0.572,2837.3,2836.3,3.52571605]
[1766083841310,6.8836,2837.3,2836.3,2.1938]
[1766083841516,6.8836,2837.3,2836.3,6.3363]
[1766083841812,6.8836,2837.3,2836.3,9.86194332]
[1766083842015,0.68836,2837.2,2836.4,3.52558096]
[1766083842182,0.68836,2837.2,2836.6,2.1938]
[1766083842513,0.572,2837.3,2836.6,6.3363]
[1766083843219,0.572,2837.3,2836.6,2.1938]
[1766083843400,2.446,2837.2,2836.2,2.3365]
[1766083843602,6.3994,2837.2,2836.2,8.37716798]
[1766083843802,0.572,2837.3,2836.5,2.3365]
[1766083844007,3.9534,2837.5,2836.6,2.3365]
[1766083844208,0.68637802,2837.4,2836.6,2.3365]
[1766083845019,3.9534,2837.3,2836.3,2.3365]
[1766083845327,3.9534,2837.3,2836.3,11.33176039]
[1766083845483,3.9534,2837.3,2836.4,6.6169]
[1766083845689,0.68637802,2837.4,2836.8,2.3365]
[1766083845993,0.68637802,2837.4,2836.3,7.05136039]
[1766083845994,0.001,2837.7,2836.7,0.571]
[1766083846199,6.4004,2837.7,2836.8,2.3365]
[1766083846607,6.4004,2837.7,2836.8,6.6169]
[1766083846915,3.9544,2837.7,2836.8,4.2804]
[1766083847100,0.49897802,2837.6,2837.0,2.3365]
[1766083847291,0.001,2837.7,2837.0,2.3365]
[1766083847698,0.001,2837.7,2837.0,6.6169]
[1766083847999,0.001,2837.7,2837.0,2.3365]
[1766083848214,6.3994,2837.6,2836.7,0.571]
[1766083848531,0.001,2837.4,2836.1,2.80088023]
[1766083848697,6.3994,2837.3,2836.4,3.52556608]
[1766083849208,6.3994,2837.3,2836.5,5.86197153]
[1766083849409,0.001,2837.4,2836.7,2.3365]
[1766083849925,0.001,2837.4,2837.0,6.6169]
[1766083850100,0.001,2837.7,2837.0,6.6169]
[1766083850719,6.3994,2837.4,2836.6,0.571]
[1766083850919,0.35248981,2837.6,2836.7,2.3365]
[1766083851126,0.35248981,2837.6,2836.8,2.3365]
[1766083851422,6.75188981,2837.6,2836.8,2.3365]
[1766083852604,6.75188981,2837.6,2836.9,2.3365]
[1766083852605,0.35248981,2837.6,2836.9,2.3365]
[1766083852921,0.572,2837.7,2836.9,2.3365]
[1766083853123,3.9534,2837.6,2836.6,2.9075]
[1766083853326,6.3994,2837.6,2836.6,6.43281929]
[1766083853620,6.3994,2837.6,2836.7,2.3365]
[1766083854144,6.3994,2837.6,2836.7,6.6169]
[1766083854434,5.00293945,2837.5,2836.6,0.571]
[1766083854637,5.00293945,2837.5,2836.6,2.9075]
[1766083855002,2.446,2837.2,2836.3,2.3365]
[1766083855208,2.446,2837.0,2836.1,0.571]
[1766083855402,3.9534,2836.9,2836.1,0.571]
[1766083855745,3.9534,2836.9,2835.5,4.58818495]
[1766083855746,6.3994,2836.5,2835.5,10.71661377]
[1766083855950,6.3994,2836.5,2835.7,3.52644611]
[1766083856262,6.3994,2836.5,2835.7,6.6169]
[1766083856811,10.0,2836.8,2835.5,0.002]
[1766083857021,11.56735086,2836.9,2835.5,0.002]
[1766083857022,2.446,2836.2,2835.5,0.002]
[1766083857237,8.83657088,2836.6,2835.5,0.002]
[1766083857238,6.9704,2836.1,2835.5,0.002]
[1766083857455,6.9704,2836.1,2835.1,0.571]
[1766083857456,3.9534,2835.9,2835.1,0.571]
[1766083857757,3.9534,2835.7,2834.8,2.3365]
[1766083857937,0.07357578,2836.4,2835.0,4.2804]
[1766083858237,3.9534,2836.1,2835.1,2.3365]
[1766083858445,3.9534,2836.3,2835.2,4.8514]
[1766083858613,0.89837224,2836.4,2835.6,4.2804]
[1766083858814,4.98878023,2836.5,2835.6,6.6169]
[1766083859754,4.98878023,2836.5,2835.6,10.14338627]
[1766083860053,4.56085231,2836.5,2835.2,0.571]
[1766083860257,6.3994,2835.8,2834.7,6.6169]
[1766083860428,0.63994,2835.7,2834.8,2.3365]
[1766083860619,6.3994,2835.8,2834.8,5.86403949]
[1766083860948,3.9534,2835.7,2834.8,2.3365]
[1766083861454,6.3941,2835.7,2834.8,2.3365]
[1766083861643,3.9577,2835.6,2834.8,2.3365]
[1766083862158,2.4407,2835.7,2834.9,2.3449]
[1766083862342,0.57,2835.7,2835.0,2.3449]
[1766083863625,0.57,2835.7,2835.0,5.87221802]
[1766083863826,0.57,2835.7,2835.0,5.87223396]
[1766083864030,0.57,2835.7,2835.0,2.3449]
[1766083864543,3.0107,2835.7,2834.7,6.44358371]
[1766083864748,6.3984,2835.5,2834.7,0.571]
[1766083864956,6.3984,2835.2,2834.4,0.572]
[1766083865328,3.9577,2834.9,2834.3,0.002]
[1766083865529,4.5277,2834.9,2834.3,0.002]
[1766083865830,4.41047,2834.8,2834.3,0.002]
[1766083866031,3.9577,2834.7,2834.3,0.002]
[1766083866259,6.3984,2834.7,2834.3,0.002]
[1766083866564,6.3984,2834.3,2833.3,2.3469]
[1766083866731,7.62495786,2834.9,2833.6,2.3449]
[1766083866732,0.57,2834.4,2833.6,2.3449]
[1766083867048,0.57,2834.5,2833.8,2.3449]
[1766083867236,1.26684,2834.5,2833.8,5.87372927]
[1766083867784,6.3984,2835.3,2833.8,7.05765981]
[1766083867927,2.4407,2835.1,2833.8,7.05765981]
[1766083868131,6.3984,2835.0,2834.0,4.1271]
[1766083868348,6.3984,2835.1,2834.0,2.3449]
[1766083868632,3.9577,2835.0,2834.1,6.472]
[1766083868942,0.63984,2834.9,2834.1,6.472]
[1766083869142,1.63984,2834.9,2833.8,7.05765981]
[1766083869471,1.0,2834.9,2834.1,4.6981]
[1766083869667,7.3984,2834.9,2834.1,0.571]
[1766083869962,6.3984,2834.7,2833.9,5.8735304]
[1766083870127,0.49577,2834.8,2834.2,2.3449]
[1766083870460,1.0,2834.9,2834.4,2.3449]
[1766083870632,1.0,2834.9,2833.8,0.573]
[1766083870633,1.0,2834.9,2833.9,4.1271]
[1766083870835,1.0,2834.9,2834.3,2.3449]
[1766083871042,1.0,2834.9,2834.3,4.1271]
[1766083871237,1.0,2834.9,2834.1,7.65552879]
[1766083871567,1.0,2834.9,2834.1,7.34357849]
[1766083871865,3.9577,2834.8,2833.9,0.571]
[1766083872167,3.9577,2834.7,2834.1,3.52842565]
[1766083872369,3.9577,2834.7,2833.9,4.09969264]
[1766083872669,3.9577,2834.7,2833.9,6.44456851]
[1766083872867,3.9577,2834.7,2833.9,2.9159]
[1766083873069,3.9577,2834.7,2833.9,2.3449]
[1766083873270,3.9577,2834.7,2833.8,0.002]
[1766083873568,4.3321,2834.2,2833.8,0.002]
[1766083874069,3.0115,2834.3,2833.3,0.002]
[1766083874070,4.3321,2833.9,2833.3,0.002]
[1766083874275,0.57,2834.3,2831.1,1.06118622]
[1766083874276,6.06496929,2833.3,2831.1,1.06118622]
[1766083874440,0.07357578,2831.2,2830.7,0.005]
[1766083874642,0.07357578,2831.2,2829.8,4.3523]
[1766083874643,4.40567578,2831.0,2829.8,4.3523]
[1766083874841,0.07357578,2829.7,2829.3,0.03534443]
[1766083875168,4.3321,2830.2,2828.9,4.3523]
[1766083875479,4.3321,2830.8,2829.7,6.9539]
[1766083875640,1.58035758,2830.7,2829.7,6.9039]
[1766083875838,0.573,2830.7,2829.8,2.6016]
[1766083876050,0.573,2830.7,2829.7,3.5339274]
[1766083876051,0.573,2830.7,2829.6,3.53402887]
[1766083876265,0.573,2830.7,2829.5,2.6016]
[1766083876485,0.573,2830.7,2829.1,2.6016]
[1766083876486,6.7736,2830.4,2829.1,2.6016]
[1766083876697,7.63842074,2830.7,2828.3,4.59769227]
[1766083876698,2.4415,2829.7,2828.3,4.59769227]
[1766083876833,1.0,2830.5,2828.6,0.07357578]
[1766083876834,6.7736,2830.1,2828.6,0.07357578]
[1766083877042,0.574,2830.0,2828.9,2.6016]
[1766083877240,3.4415,2830.5,2829.0,0.46438023]
[1766083877485,7.3476,2830.4,2829.0,2.6016]
[1766083877774,0.574,2830.3,2829.2,7.06913614]
[1766083877982,6.7736,2830.2,2829.1,7.38690955]
[1766083878279,1.0,2830.5,2829.1,7.38690955]
[1766083878280,7.3486,2830.1,2829.1,3.85221654]
[1766083878480,2.4415,2829.9,2829.1,0.31756]
[1766083878679,2.4415,2829.9,2828.8,6.13656128]
[1766083878680,6.7736,2829.9,2828.8,2.6016]
[1766083879046,1.0,2830.5,2829.4,4.3523]
[1766083879284,1.0,2830.5,2829.1,7.06938602]
[1766083879285,1.0,2830.5,2829.7,2.6016]
[1766083879653,1.0,2830.5,2830.1,2.6016]
[1766083879851,1.0,2830.5,2829.9,10.48759377]
[1766083880051,1.0,2830.5,2830.0,1.40213971]
[1766083880282,1.0,2830.5,2830.0,4.00373971]
[1766083880499,1.0,2830.5,2830.0,1.40213971]
[1766083880864,1.0,2830.5,2830.0,8.35603971]
[1766083881558,1.0,2830.5,2829.7,4.10891047]
[1766083881763,1.0,2830.5,2829.8,6.9539]
[1766083882056,6.7736,2831.7,2830.4,4.3523]
[1766083882253,6.7736,2831.7,2830.7,6.9539]
[1766083882669,0.575,2831.8,2830.7,2.6016]
[1766083882864,0.575,2831.8,2830.8,4.3523]
[1766083883290,6.7736,2832.0,2830.9,0.575]
[1766083883466,0.575,2831.9,2831.0,6.9539]
[1766083883799,0.575,2832.3,2831.1,4.28507236]
[1766083883992,2.4415,2831.8,2830.9,3.53243704]
[1766083884158,2.4415,2831.8,2830.6,4.3523]
[1766083884159,7.3486,2831.7,2830.7,3.53258058]
[1766083884483,6.7736,2831.5,2830.9,3.53243212]
[1766083884685,6.7736,2831.5,2830.6,4.3523]
[1766083884987,6.7736,2831.5,2831.0,3.53231995]
[1766083885189,6.7736,2832.6,2831.4,2.6016]
[1766083885490,30.0,2832.1,2831.0,4.10629504]
[1766083885656,0.574,2832.0,2831.0,4.10631022]
[1766083885859,0.98448455,2832.0,2831.0,4.10631022]
[1766083886061,0.98448455,2832.0,2830.6,6.9539]
[1766083886062,2.4415,2831.9,2830.6,6.9539]
[1766083886286,2.4415,2831.9,2829.3,3.53441415]
[1766083886287,0.46438023,2831.9,2830.3,6.9539]
[1766083886488,2.4415,2831.3,2830.2,0.575]
[1766083886689,7.3486,2831.2,2830.3,3.53310903]
[1766083887002,0.575,2831.2,2830.0,0.002]
[1766083887177,4.3321,2831.0,2830.0,0.002]
[1766083887381,0.575,2831.2,2830.3,4.3523]
[1766083887382,0.574,2830.9,2830.3,4.3523]
[1766083887576,6.7736,2831.2,2830.2,3.53324428]
[1766083887778,7.3476,2831.1,2830.1,2.6016]
[1766083887978,7.3476,2831.1,2830.1,6.9539]
[1766083888182,0.574,2831.1,2830.3,3.5331595]
[1766083888384,0.574,2831.1,2830.3,10.4870595]
[1766083888583,0.46438023,2831.4,2830.3,3.5331595]
[1766083888786,6.7736,2831.5,2830.3,7.06635386]
[1766083889091,0.574,2831.4,2830.3,7.06635386]
[1766083889292,0.574,2831.5,2830.7,6.9539]
[1766083889587,0.07357578,2832.2,2830.6,3.53281989]
[1766083889813,2.4415,2831.8,2830.0,0.002]
[1766083890016,4.3321,2831.5,2830.5,10.48681047]
[1766083890367,4.9061,2831.5,2830.5,10.48681047]
[1766083890580,7.3476,2831.5,2830.5,10.48681047]
[1766083890762,6.7736,2831.4,2830.5,10.48681047]
[1766083890965,3.53072318,2832.3,2830.6,0.574]
[1766083891300,4.3321,2831.7,2830.5,7.06585517]
[1766083891592,2.4415,2831.6,2830.6,7.5279]
[1766083891792,6.7736,2831.6,2830.7,3.53269509]
[1766083892001,6.7736,2831.6,2830.6,11.06066851]
[1766083892161,7.45096,2831.5,2830.6,0.574]
[1766083892507,6.7736,2831.3,2830.4,3.5329901]
[1766083892666,6.7736,2831.3,2830.4,3.53299327]
[1766083892866,0.67736,2831.5,2830.6,3.53281818]
[1766083893063,6.7736,2831.7,2830.7,6.9539]
[1766083893343,6.7736,2831.4,2830.3,6.9539]
[1766083893639,0.405504,2831.5,2830.3,6.9539]
[1766083893640,6.7736,2831.2,2830.4,3.5330499]
[1766083893823,6.7736,2831.2,2830.3,6.9539]
[1766083894027,0.574,2831.3,2830.2,3.53327075]
[1766083894237,6.7736,2831.2,2830.3,3.53317082]
[1766083894549,6.7736,2831.1,2830.2,3.5332715]
[1766083894703,6.7736,2831.1,2830.3,3.53317217]
[1766083895125,4.88498489,2832.2,2830.3,3.53317217]
[1766083895126,10.0,2832.1,2830.9,2.6016]
[1766083895329,6.7736,2831.6,2830.8,0.574]
[1766083895525,0.574,2831.5,2830.5,0.574]
[1766083895707,7.3476,2831.5,2830.6,3.53281989]
[1766083895908,7.3476,2831.5,2830.6,7.06563978]
[1766083895909,0.574,2831.5,2830.6,7.06563978]
[1766083896108,0.574,2831.5,2830.9,6.9539]
[1766083896608,6.7736,2832.0,2831.0,6.9539]
[1766083896609,7.3476,2832.0,2831.0,6.9539]
[1766083896811,1.81845255,2832.2,2831.0,6.9539]
[1766083896998,0.91660526,2832.1,2831.2,4.3523]
[1766083897197,0.91660526,2832.1,2831.4,4.3523]
[1766083897402,0.91660526,2832.1,2831.4,3.54733443]
[1766083897612,0.91660526,2832.1,2831.3,2.6016]
[1766083897851,6.7736,2832.0,2831.1,3.5321419]
[1766083898155,1.76912053,2832.0,2831.3,3.53190924]
[1766083898298,0.001,2832.2,2831.4,2.6016]
[1766083898910,0.574,2832.5,2831.3,11.16980214]
[1766083899216,0.574,2832.5,2831.4,2.6016]
[1766083899416,0.574,2832.5,2831.3,7.63785569]
[1766083899606,1.30876,2832.5,2831.6,2.6016]
[1766083899810,0.73476,2832.5,2831.7,6.9539]
[1766083900103,0.73476,2832.5,2831.4,4.29551169]
[1766083900104,0.73476,2832.5,2831.5,3.53169015]
[1766083900300,0.73476,2832.5,2831.6,3.53151295]
[1766083900501,0.73476,2832.5,2831.4,11.24944548]
[1766083900830,0.48390923,2832.4,2831.4,10.48571125]
[1766083901032,0.73476,2832.5,2831.6,3.5315434]
[1766083901424,0.73476,2832.5,2831.9,6.9539]
[1766083901746,0.001,2832.1,2832.0,6.9539]
[1766083901945,0.574,2832.6,2832.0,6.9539]
[1766083902141,0.574,2832.6,2831.7,0.574]
[1766083902334,0.574,2832.6,2831.7,3.1756]
[1766083902530,0.574,2832.6,2831.7,6.70702185]
[1766083902737,0.46438023,2833.1,2832.0,7.06211383]
[1766083902949,0.573,2833.1,2832.2,2.3966]
[1766083903167,0.573,2833.1,2832.5,4.1239]
[1766083903452,0.001,2833.3,2832.6,5.37102011]
[1766083903830,0.43321,2833.8,2832.7,4.1239]
[1766083904035,11.03738023,2834.0,2832.9,4.1239]
[1766083904242,1.03738023,2834.0,2832.9,4.1239]
[1766083904618,1.03738023,2834.0,2832.9,4.6969]
[1766083904619,0.573,2834.0,2832.9,4.6969]
[1766083905250,0.001,2834.4,2833.0,2.3966]
[1766083905559,0.001,2834.4,2833.5,4.1239]
[1766083905755,0.001,2834.4,2833.7,4.1239]
[1766083905993,0.001,2834.5,2832.8,14.19388074]
[1766083905994,0.001,2834.5,2833.9,6.5205]
[1766083906133,10.0,2835.9,2833.9,0.46438023]
[1766083906331,6.6736,2836.0,2834.5,2.3966]
[1766083906332,0.573,2835.8,2834.5,2.3966]
[1766083906541,2.5405,2835.5,2834.1,4.1239]
[1766083906732,7.05395091,2835.7,2834.0,0.573]
[1766083906733,6.6736,2835.1,2834.0,0.573]
[1766083906949,0.66736,2835.0,2834.0,0.573]
[1766083907166,0.66736,2835.0,2834.0,7.0935]
[1766083907371,2.5405,2834.8,2834.0,0.573]
[1766083907669,4.1331,2834.6,2833.4,0.573]
[1766083907845,4.1331,2834.6,2833.4,4.10229402]
[1766083907846,6.6736,2834.5,2833.4,4.10229402]
[1766083908162,6.6736,2834.5,2833.4,4.10227854]
[1766083908769,2.5405,2834.2,2833.4,0.573]
[1766083908938,6.6736,2834.2,2833.4,0.573]
[1766083910145,0.87446508,2834.5,2833.4,7.0935]
[1766083910466,0.41008485,2834.5,2833.4,7.0935]
[1766083910673,0.41108485,2834.5,2833.5,6.5205]
[1766083910970,3.1135,2835.1,2834.1,4.1239]
[1766083911174,3.1135,2835.1,2834.0,2.9696]
[1766083911175,4.10025723,2835.1,2834.0,2.9696]
[1766083911375,6.6736,2835.0,2834.0,0.573]
[1766083912112,6.6736,2835.0,2834.0,4.6969]
[1766083912263,6.6736,2835.0,2833.6,1.76814862]
[1766083912264,13.7946,2834.8,2833.8,3.52875597]
[1766083912472,6.6736,2834.8,2833.9,3.52868948]
[1766083912673,6.6736,2834.8,2833.8,7.0935]
[1766083912843,6.6736,2834.8,2833.8,10.62231187]
[1766083913048,0.739826,2834.7,2833.9,3.52868998]
[1766083913244,0.739826,2834.7,2833.8,0.573]
[1766083913450,4.59748023,2835.4,2834.0,7.05714419]
[1766083913845,4.1331,2835.4,2834.5,4.1239]
[1766083914073,7.66000273,2835.4,2834.4,2.9686]
[1766083914278,6.6736,2835.4,2834.4,0.572]
[1766083914466,6.6736,2835.4,2834.4,7.0925]
[1766083914668,1.02003529,2835.3,2834.4,7.0925]
[1766083915188,2.5405,2835.1,2833.8,4.1239]
[1766083915349,0.572,2835.2,2834.1,10.04895615]
[1766083915549,0.572,2835.2,2834.2,4.1239]
[1766083915745,1.75124766,2835.2,2834.4,4.1239]
[1766083915972,0.572,2835.5,2834.6,6.5205]
[1766083916172,0.572,2835.5,2834.6,4.09981228]
[1766083916378,0.572,2835.5,2834.8,6.5205]
[1766083916777,6.6736,2835.2,2834.2,3.52831573]
[1766083916949,6.6736,2835.2,2834.1,0.572]
[1766083917251,1.23936,2835.1,2834.0,4.1239]
[1766083917453,2.5405,2834.9,2834.0,4.1239]
[1766083917652,6.6736,2834.7,2833.8,0.572]
[1766083917860,7.2456,2834.7,2833.8,0.572]
[1766083918080,6.6736,2834.6,2833.8,0.572]
[1766083918378,6.6736,2834.4,2833.5,0.573]
[1766083918577,3.20786,2834.3,2833.5,0.573]
[1766083918882,6.6736,2834.3,2833.5,0.573]
[1766083919274,13.52788253,2834.6,2833.5,0.573]
[1766083919475,13.52788253,2834.6,2833.6,6.5205]
[1766083919476,6.6736,2834.6,2833.6,6.5205]
[1766083919662,30.0,2835.3,2834.0,4.1239]
[1766083919869,2.5405,2835.0,2833.8,4.1239]
[1766083920054,6.92765,2834.9,2833.9,0.573]
[1766083920248,6.92765,2834.9,2833.8,4.1239]
[1766083920249,2.5405,2834.8,2833.8,7.65272042]
[1766083920466,2.5405,2834.8,2833.8,4.1239]
[1766083920661,2.5405,2834.6,2833.3,0.7083]
[1766083920983,6.6736,2834.6,2833.5,3.52914196]
[1766083921181,0.66736,2834.5,2833.6,3.52904588]
[1766083921790,2.3743,2834.2,2833.2,0.572]
[1766083922090,2.3743,2834.4,2833.2,0.572]
[1766083922380,3.999,2834.1,2833.2,0.572]
[1766083922595,3.999,2834.5,2833.3,4.3226]
[1766083922896,6.3733,2834.3,2833.3,4.3226]
[1766083923256,3.999,2834.3,2833.3,4.3226]
[1766083923467,2.3743,2834.2,2833.3,4.3226]
[1766083923678,3.567,2834.0,2832.8,3.53005122]
[1766083923875,0.572,2834.1,2832.8,3.53005122]
[1766083923876,6.7872,2833.9,2832.8,0.70602819]
[1766083924181,2.3743,2833.5,2832.6,3.53027817]
[1766083924502,2.3743,2833.5,2831.4,3.53180125]
[1766083924503,2.3743,2832.4,2831.3,0.002]
[1766083924664,0.572,2832.3,2831.3,0.002]
[1766083924871,2.9463,2832.3,2831.3,0.002]
[1766083925104,2.3743,2832.3,2831.4,1.00546]
[1766083925408,0.573,2832.9,2831.9,4.3226]
[1766083925628,4.977504,2833.2,2832.1,4.3226]
[1766083925918,3.999,2832.8,2831.9,0.573]
[1766083926069,2.3743,2832.6,2831.9,0.573]
[1766083926263,3.999,2832.7,2831.9,0.573]
[1766083926264,3.999,2832.7,2832.1,0.002]
[1766083926469,2.3743,2833.0,2832.1,0.002]
[1766083926703,6.3733,2832.7,2832.1,0.56259]
[1766083927072,2.3743,2834.1,2832.5,4.3226]
[1766083927290,3.999,2834.0,2832.8,5.0309]
[1766083927610,6.3733,2834.0,2832.9,0.574]
[1766083927822,0.574,2834.2,2832.9,4.8966]
[1766083927823,2.3743,2833.9,2832.9,4.8966]
[1766083927973,2.3743,2833.9,2832.9,1.06366]
[1766083928316,2.3743,2833.8,2832.9,4.10387018]
[1766083928485,6.3733,2833.8,2832.9,4.10387018]
[1766083929001,6.3733,2833.8,2832.9,7.63382181]
[1766083929375,6.3733,2833.8,2832.9,4.10387018]
[1766083929571,0.405504,2834.0,2832.9,4.8966]
[1766083929771,0.46438023,2834.1,2833.0,0.48966]
[1766083929972,0.405504,2833.9,2833.0,0.48966]
[1766083930273,0.405504,2833.9,2832.6,0.573]
[1766083930274,6.3733,2833.5,2832.6,0.573]
[1766083930473,4.572,2834.1,2832.9,4.3226]
[1766083930779,6.3733,2833.9,2832.9,4.3226]
[1766083931498,2.3743,2833.6,2832.7,0.573]
[1766083932118,2.3743,2833.4,2832.1,0.56259]
[1766083932287,3.999,2832.8,2832.1,0.002]
[1766083932481,34.2055,2832.6,2831.5,4.8956]
[1766083932681,2.4817,2832.4,2831.3,0.7103]
[1766083932908,2.4817,2832.4,2831.3,4.7655]
[1766083933121,0.405504,2832.7,2831.4,4.0552]
[1766083933331,2.4817,2832.6,2831.5,8.2950849]
[1766083933486,4.2055,2832.5,2831.5,4.0552]
[1766083933802,18.818,2832.4,2831.3,3.53391248]
[1766083934004,3.0547,2832.8,2831.5,4.0552]
[1766083934195,6.6872,2832.7,2831.6,0.573]
[1766083934713,2.887204,2832.6,2831.5,4.0552]
[1766083935023,7.73570404,2832.7,2831.3,0.002]
[1766083935024,4.2055,2832.1,2831.3,0.002]
[1766083935197,2.4817,2832.0,2831.7,0.002]
[1766083935396,3.20772,2832.0,2831.3,0.002]
[1766083936080,3.20772,2832.0,2831.0,3.53429076]
[1766083936081,2.4817,2831.7,2831.0,0.002]
[1766083936323,2.4817,2831.6,2831.0,0.002]
[1766083936522,0.573,2831.7,2831.0,0.002]
[1766083936724,3.0547,2832.0,2831.0,0.002]
[1766083937020,0.978504,2832.3,2831.0,4.6302]
[1766083937178,2.4817,2832.4,2831.4,4.0552]
[1766083937385,2.4817,2832.4,2831.5,0.573]
[1766083937601,2.4817,2832.9,2831.6,4.0552]
[1766083937788,0.573,2833.1,2832.0,4.0552]
[1766083938000,6.6872,2832.9,2831.9,0.573]
[1766083938183,0.573,2833.1,2832.2,4.0552]
[1766083938387,0.07357578,2834.4,2832.6,4.0552]
[1766083938388,2.4817,2833.7,2832.6,4.0552]
[1766083938591,4.7785,2834.0,2832.8,4.0552]
[1766083938592,7.2602,2834.0,2832.8,4.0552]
[1766083938802,2.4817,2833.9,2832.8,4.0552]
[1766083939026,8.30714092,2834.0,2832.5,3.5303539]
[1766083939027,6.6872,2833.6,2832.5,3.5303539]
[1766083939626,6.6872,2833.6,2832.6,3.53022065]
[1766083939627,2.4817,2833.5,2832.6,3.53022065]
[1766083939820,4.7785,2833.6,2832.7,0.35302207]
[1766083940190,2.4817,2833.4,2832.5,3.53039429]
[1766083940392,4.2055,2833.1,2832.0,3.53096737]
[1766083940597,0.573,2833.6,2832.0,3.53102791]
[1766083940598,7.2602,2833.0,2832.0,3.53102791]
[1766083940930,6.6872,2832.9,2831.8,8.15951727]
[1766083941097,6.6872,2832.9,2831.8,4.0552]
[1766083941431,4.10290761,2833.0,2831.7,0.573]
[1766083941432,6.6872,2832.6,2831.7,0.573]
[1766083941593,2.4817,2832.5,2831.7,4.10443997]
[1766083941793,2.4817,2832.5,2831.7,0.573]
[1766083942024,2.4817,2832.5,2831.7,4.10442299]
[1766083942330,2.4817,2832.5,2831.7,0.573]
[1766083942627,0.72602,2832.5,2831.7,4.10440883]
[1766083942812,0.573,2832.6,2831.7,4.10440883]
[1766083943217,0.46438023,2833.1,2831.8,4.7675]
[1766083943518,4.2055,2832.9,2831.8,4.0552]
[1766083943738,3.0547,2833.0,2831.8,4.0552]
[1766083943739,0.573,2833.0,2831.8,4.0552]
[1766083943897,1.35190802,2832.9,2831.8,4.94259088]
[1766083944688,1.35190802,2832.9,2831.9,7.06239626]
[1766083944932,2.4817,2832.8,2831.8,4.0552]
[1766083945295,2.4817,2832.8,2831.6,4.6302]
[1766083945296,2.4817,2832.7,2831.6,4.6302]
[1766083945631,2.4817,2832.7,2831.8,3.53131566]
[1766083945829,0.66872,2832.6,2831.8,3.53131566]
[1766083946045,0.573,2833.0,2831.9,4.7675]
[1766083946250,0.573,2833.0,2832.0,4.6282]
[1766083946832,0.573,2833.0,2832.0,8.1592081]
[1766083947143,2.4817,2832.9,2832.0,4.10407344]
[1766083947343,2.78717,2832.9,2832.0,3.53107344]
[1766083947647,2.78717,2832.9,2832.0,7.63514688]
[1766083948263,2.78717,2832.9,2831.9,4.0552]
[1766083948425,2.78717,2832.9,2832.0,0.572]
[1766083948817,2.78717,2832.9,2832.0,4.10303435]
[1766083949018,0.336017,2832.8,2832.0,0.572]
[1766083949320,6.6872,2832.6,2831.6,0.002]
[1766083949535,6.6872,2832.6,2831.8,3.53125585]
[1766083949712,6.6872,2832.6,2831.9,3.53119475]
[1766083949915,6.6872,2832.4,2831.6,0.002]
[1766083950257,0.572,2832.5,2831.7,4.0552]
[1766083950414,0.572,2832.5,2831.7,4.7675]
[1766083950614,2.4817,2833.7,2832.1,4.0552]
[1766083950827,6.49,2833.4,2832.4,3.53057477]
[1766083951028,6.6872,2833.2,2832.3,4.10265877]
[1766083951315,6.6872,2833.2,2832.3,0.572]
[1766083951512,7.2592,2833.2,2832.2,3.53076309]
[1766083951745,7.2592,2833.2,2832.3,3.53069579]
[1766083952255,7.2592,2833.2,2832.2,4.10271299]
[1766083952568,6.01054281,2833.8,2832.5,0.7123]
[1766083952851,6.6872,2833.3,2832.4,4.10251205]
[1766083953034,2.4817,2833.3,2832.4,8.15771205]
[1766083953447,10.572,2833.5,2832.5,4.7675]
[1766083953448,0.572,2833.5,2832.5,4.7675]
[1766083953765,0.572,2833.5,2832.4,7.63308682]